fUSD/lending_fUSD_20260620
["ID","MTS","AMOUNT","RATE_DAILY","PERIOD"]
[425795024,1781898650000,-597.73,0.00027397,10]
[425795022,1781898650000,-410.0,0.00023293,2]
[425795030,1781898650000,-196.84755954,0.00033705,2]
[425795023,1781898650000,-426.33954584,0.000337,7]
[425795038,1781898650000,-317.51251259,0.00033705,2]
[425795037,1781898650000,-183.95686686,0.00033705,2]
[425795036,1781898650000,-372.02810941,0.00033705,2]
[425795050,1781898650000,-573.56,0.00033767,2]
[425795051,1781898650000,-573.56,0.00033767,2]
[425795049,1781898650000,-572.94,0.00033767,2]
[425795053,1781898650000,-644.26,0.00033767,2]
[425795048,1781898650000,-185.17,0.00033767,2]
[425795047,1781898650000,-185.17,0.00033767,2]
[425795052,1781898650000,-185.09,0.00033767,2]
[425795046,1781898650000,-644.29,0.00033764,2]
[425795039,1781898650000,-396.25812918,0.00033705,2]
[425795041,1781898650000,-357.55148354,0.00033709,2]
[425795044,1781898650000,-278.18840002,0.00033753,2]
[425795040,1781898650000,-436.04070623,0.00033705,2]
[425795045,1781898650000,-371.14107545,0.00033761,2]
[425795043,1781898650000,-250.0,0.00033753,32]
[425795095,1781898651000,-248.76461,0.00034,120]
[425795094,1781898651000,-300.0,0.00034,2]
[425795091,1781898651000,-339.0,0.00033934,30]
[425795092,1781898651000,-13573.48486708,0.00033973,2]
[425795086,1781898651000,-314.0,0.00033932,30]
[425795084,1781898651000,-159.0,0.00033932,30]
[425795081,1781898651000,-151.0,0.00033932,30]
[425795085,1781898651000,-158.0,0.00033932,30]
[425795087,1781898651000,-156.0,0.00033932,30]
[425795093,1781898651000,-800.0,0.00034,7]
[425795080,1781898651000,-1083.46,0.00033928,2]
[425795096,1781898651000,-307.54904129,0.00034002,3]
[425795103,1781898651000,-447.60197983,0.00034077,2]
[425795098,1781898651000,-849.56608415,0.0003401,2]
[425795099,1781898651000,-500.0,0.00034068,120]
[425795097,1781898651000,-262.67,0.00034008,120]
[425795101,1781898651000,-849.56608415,0.00034074,2]
[425795102,1781898651000,-310.87455439,0.00034077,2]
[425795088,1781898651000,-162.0,0.00033934,30]
[425795105,1781898651000,-300.0,0.00034077,2]
[425795107,1781898651000,-953.23174262,0.00034077,2]
[425795104,1781898651000,-300.0,0.00034077,2]
[425795106,1781898651000,-461.95871133,0.00034077,2]
[425795111,1781898651000,-301.27653347,0.00034077,2]
[425795110,1781898651000,-300.76378062,0.00034077,2]
[425795100,1781898651000,-637.69700445,0.00034071,2]
[425795089,1781898651000,-337.0,0.00033934,30]
[425795077,1781898651000,-1000.0,0.00033928,2]
[425795083,1781898651000,-485.0,0.00033932,30]
[425795108,1781898651000,-609.58939926,0.00034077,2]
[425795055,1781898651000,-185.19,0.0003377,2]
[425795056,1781898651000,-185.17,0.0003377,2]
[425795059,1781898651000,-573.58,0.0003377,2]
[425795058,1781898651000,-647.28,0.0003377,2]
[425795057,1781898651000,-184.81,0.0003377,2]
[425795061,1781898651000,-573.56,0.0003377,2]
[425795065,1781898651000,-251.11897888,0.00033781,2]
[425795060,1781898651000,-185.17,0.0003377,2]
[425795066,1781898651000,-301.14337869,0.00033781,2]
[425795062,1781898651000,-312.43,0.0003377,2]
[425795064,1781898651000,-775.4783256,0.00033779,2]
[425795082,1781898651000,-406.0,0.00033932,30]
[425795063,1781898651000,-621.78829552,0.00033779,2]
[425795078,1781898651000,-1125.19,0.00033928,2]
[425795067,1781898651000,-151.0,0.00033781,2]
[425795072,1781898651000,-1946.51010907,0.00033848,2]
[425795070,1781898651000,-436.62,0.000338,7]
[425795071,1781898651000,-2000.0,0.00033815,7]
[425795074,1781898651000,-721.94454282,0.00033879,2]
[425795073,1781898651000,-4336.51,0.00033849,2]
[425795069,1781898651000,-169.13,0.000338,30]
[425795075,1781898651000,-152.20362813,0.000339,2]
[425795076,1781898651000,-1000.0,0.00033928,2]
[425795079,1781898651000,-1000.0,0.00033928,2]
[425795090,1781898651000,-154.0,0.00033934,30]
[425795068,1781898651000,-781.33996127,0.00033781,2]
[425795109,1781898651000,-310.87455439,0.00034077,2]
[425795054,1781898651000,-482.37,0.00033767,2]
[425795114,1781898651000,-300.92006024,0.00034077,2]
[425795146,1781898651000,-469.87416478,0.00034077,2]
[425795144,1781898651000,-300.0,0.00034077,2]
[425795145,1781898651000,-317.10221713,0.00034077,2]
[425795143,1781898651000,-300.74484424,0.00034077,2]
[425795141,1781898651000,-300.0,0.00034077,2]
[425795149,1781898651000,-300.0,0.00034077,2]
[425795154,1781898651000,-729.30519734,0.00034077,2]
[425795159,1781898651000,-300.0,0.00034077,2]
[425795153,1781898651000,-300.0,0.00034077,2]
[425795152,1781898651000,-300.37300357,0.00034077,2]
[425795161,1781898651000,-300.0,0.00034077,2]
[425795151,1781898651000,-536.20027507,0.00034077,2]
[425795142,1781898651000,-443.77493957,0.00034077,2]
[425795150,1781898651000,-300.0,0.00034077,2]
[425795155,1781898651000,-300.0,0.00034077,2]
[425795156,1781898651000,-303.0384375,0.00034077,2]
[425795158,1781898651000,-300.82215597,0.00034077,2]
[425795157,1781898651000,-300.0,0.00034077,2]
[425795163,1781898651000,-707.65857622,0.00034077,2]
[425795164,1781898651000,-300.74059742,0.00034077,2]
[425795166,1781898651000,-868.23630602,0.00034077,2]
[425795165,1781898651000,-300.00000001,0.00034077,2]
[425795162,1781898651000,-300.0,0.00034077,2]
[425795168,1781898651000,-1805.25903877,0.00034077,2]
[425795167,1781898651000,-953.23174262,0.00034077,2]
[425795169,1781898651000,-300.72083682,0.00034077,2]
[425795160,1781898651000,-300.0,0.00034077,2]
[425795140,1781898651000,-300.0,0.00034077,2]
[425795112,1781898651000,-606.89131851,0.00034077,2]
[425795148,1781898651000,-300.0,0.00034077,2]
[425795136,1781898651000,-300.78934956,0.00034077,2]
[425795120,1781898651000,-300.0,0.00034077,2]
[425795119,1781898651000,-300.78114071,0.00034077,2]
[425795113,1781898651000,-300.83277241,0.00034077,2]
[425795115,1781898651000,-301.14202972,0.00034077,2]
[425795116,1781898651000,-300.82634035,0.00034077,2]
[425795117,1781898651000,-300.77232206,0.00034077,2]
[425795118,1781898651000,-300.78929973,0.00034077,2]
[425795121,1781898651000,-729.30519735,0.00034077,2]
[425795122,1781898651000,-300.0,0.00034077,2]
[425795124,1781898651000,-300.0,0.00034077,2]
[425795127,1781898651000,-301.08071915,0.00034077,2]
[425795133,1781898651000,-300.0,0.00034077,2]
[425795123,1781898651000,-300.0,0.00034077,2]
[425795130,1781898651000,-310.87455439,0.00034077,2]
[425795125,1781898651000,-300.0,0.00034077,2]
[425795138,1781898651000,-453.76238698,0.00034077,2]
[425795137,1781898651000,-301.09843282,0.00034077,2]
[425795147,1781898651000,-300.0,0.00034077,2]
[425795129,1781898651000,-1805.25903878,0.00034077,2]
[425795131,1781898651000,-1346.77663016,0.00034077,2]
[425795126,1781898651000,-707.65857622,0.00034077,2]
[425795139,1781898651000,-301.08644392,0.00034077,2]
[425795132,1781898651000,-300.0,0.00034077,2]
[425795128,1781898651000,-953.23174262,0.00034077,2]
[425795134,1781898651000,-596.6186847,0.00034077,2]
[425795135,1781898651000,-300.0,0.00034077,2]
[425795209,1781898652000,-529.05209385,0.00034077,2]
[425795213,1781898652000,-1805.25903877,0.00034077,2]
[425795207,1781898652000,-300.71386501,0.00034077,2]
[425795203,1781898652000,-402.3829154,0.00034077,2]
[425795199,1781898652000,-975.55439834,0.00034077,2]
[425795200,1781898652000,-303.03843751,0.00034077,2]
[425795198,1781898652000,-536.20027507,0.00034077,2]
[425795202,1781898652000,-301.81066392,0.00034077,2]
[425795197,1781898652000,-300.0,0.00034077,2]
[425795216,1781898652000,-415.78239602,0.00034077,2]
[425795201,1781898652000,-300.68374201,0.00034077,2]
[425795218,1781898652000,-797.96400264,0.00034077,2]
[425795228,1781898652000,-300.0,0.00034077,2]
[425795212,1781898652000,-321.72961244,0.00034077,2]
[425795217,1781898652000,-1353.79599941,0.00034077,2]
[425795211,1781898652000,-868.23630602,0.00034077,2]
[425795215,1781898652000,-300.0,0.00034077,2]
[425795210,1781898652000,-300.92445162,0.00034077,2]
[425795214,1781898652000,-300.6503678,0.00034077,2]
[425795219,1781898652000,-513.37925185,0.00034077,2]
[425795220,1781898652000,-586.75963259,0.00034077,2]
[425795221,1781898652000,-453.76238698,0.00034077,2]
[425795225,1781898652000,-300.0,0.00034077,2]
[425795224,1781898652000,-300.0,0.00034077,2]
[425795206,1781898652000,-300.0,0.00034077,2]
[425795208,1781898652000,-345.36551989,0.00034077,2]
[425795205,1781898652000,-300.0,0.00034077,2]
[425795179,1781898652000,-300.78274219,0.00034077,2]
[425795195,1781898652000,-300.0,0.00034077,2]
[425795227,1781898652000,-300.0,0.00034077,2]
[425795170,1781898652000,-300.0,0.00034077,2]
[425795171,1781898652000,-300.0,0.00034077,2]
[425795172,1781898652000,-300.75268601,0.00034077,2]
[425795174,1781898652000,-300.76274611,0.00034077,2]
[425795184,1781898652000,-300.0,0.00034077,2]
[425795173,1781898652000,-310.87455439,0.00034077,2]
[425795181,1781898652000,-583.77891855,0.00034077,2]
[425795176,1781898652000,-1346.77663016,0.00034077,2]
[425795177,1781898652000,-300.83972211,0.00034077,2]
[425795182,1781898652000,-453.76238698,0.00034077,2]
[425795178,1781898652000,-300.0,0.00034077,2]
[425795193,1781898652000,-332.85559595,0.00034077,2]
[425795175,1781898652000,-300.78071471,0.00034077,2]
[425795183,1781898652000,-300.0,0.00034077,2]
[425795186,1781898652000,-312.56745873,0.00034077,2]
[425795190,1781898652000,-300.0,0.00034077,2]
[425795189,1781898652000,-300.0,0.00034077,2]
[425795187,1781898652000,-300.99760737,0.00034077,2]
[425795185,1781898652000,-300.0,0.00034077,2]
[425795191,1781898652000,-300.0,0.00034077,2]
[425795188,1781898652000,-300.0,0.00034077,2]
[425795192,1781898652000,-494.71343191,0.00034077,2]
[425795194,1781898652000,-607.15070659,0.00034077,2]
[425795196,1781898652000,-300.0,0.00034077,2]
[425795204,1781898652000,-300.0,0.00034077,2]
[425795180,1781898652000,-596.6186847,0.00034077,2]
[425795226,1781898652000,-301.5638225,0.00034077,2]
[425795230,1781898652000,-300.000001,0.00034077,2]
[425795222,1781898652000,-301.18797797,0.00034077,2]
[425795256,1781898652000,-812.1693504,0.00034077,2]
[425795261,1781898652000,-300.0,0.00034077,2]
[425795260,1781898652000,-300.78479298,0.00034077,2]
[425795254,1781898652000,-300.75340125,0.00034077,2]
[425795264,1781898652000,-300.0,0.00034077,2]
[425795257,1781898652000,-300.79342876,0.00034077,2]
[425795267,1781898652000,-300.0,0.00034077,2]
[425795266,1781898652000,-301.26550419,0.00034077,2]
[425795277,1781898652000,-300.0,0.00034077,2]
[425795278,1781898652000,-300.0,0.00034077,2]
[425795272,1781898652000,-300.0,0.00034077,2]
[425795276,1781898652000,-300.0,0.00034077,2]
[425795259,1781898652000,-300.71941569,0.00034077,2]
[425795274,1781898652000,-513.37925184,0.00034077,2]
[425795270,1781898652000,-953.23174262,0.00034077,2]
[425795268,1781898652000,-953.23174262,0.00034077,2]
[425795269,1781898652000,-300.0,0.00034077,2]
[425795271,1781898652000,-300.0,0.00034077,2]
[425795273,1781898652000,-300.0,0.00034077,2]
[425795279,1781898652000,-300.0,0.00034077,2]
[425795281,1781898652000,-176.31,0.00034083,120]
[425795282,1781898652000,-4336.51,0.00034097,2]
[425795229,1781898652000,-300.0,0.00034077,2]
[425795280,1781898652000,-250.0,0.00034078,7]
[425795285,1781898652000,-464.593535,0.00034114,2]
[425795284,1781898652000,-1641.07,0.00034114,7]
[425795275,1781898652000,-389.51983088,0.00034077,2]
[425795263,1781898652000,-1099.79313,0.00034077,2]
[425795283,1781898652000,-10091.90896854,0.000341,2]
[425795265,1781898652000,-300.0,0.00034077,2]
[425795223,1781898652000,-300.0,0.00034077,2]
[425795231,1781898652000,-661.85593187,0.00034077,2]
[425795236,1781898652000,-300.0,0.00034077,2]
[425795232,1781898652000,-300.95123948,0.00034077,2]
[425795233,1781898652000,-607.15070659,0.00034077,2]
[425795241,1781898652000,-300.0,0.00034077,2]
[425795238,1781898652000,-301.81066392,0.00034077,2]
[425795234,1781898652000,-300.73613232,0.00034077,2]
[425795237,1781898652000,-717.27008136,0.00034077,2]
[425795239,1781898652000,-301.1067766,0.00034077,2]
[425795240,1781898652000,-300.0,0.00034077,2]
[425795243,1781898652000,-345.36551989,0.00034077,2]
[425795235,1781898652000,-300.0,0.00034077,2]
[425795251,1781898652000,-300.99682786,0.00034077,2]
[425795262,1781898652000,-345.36551988,0.00034077,2]
[425795252,1781898652000,-1099.79313,0.00034077,2]
[425795255,1781898652000,-300.0,0.00034077,2]
[425795250,1781898652000,-300.0,0.00034077,2]
[425795248,1781898652000,-686.62261657,0.00034077,2]
[425795249,1781898652000,-540.78379888,0.00034077,2]
[425795258,1781898652000,-300.0,0.00034077,2]
[425795244,1781898652000,-350.44561148,0.00034077,2]
[425795253,1781898652000,-302.62948189,0.00034077,2]
[425795247,1781898652000,-1805.25903876,0.00034077,2]
[425795246,1781898652000,-1161.36974449,0.00034077,2]
[425795245,1781898652000,-300.0,0.00034077,2]
[425795242,1781898652000,-300.0,0.00034077,2]
[425795317,1781898653000,-427.08799397,0.00034557,2]
[425795320,1781898653000,-577.79243678,0.00034557,2]
[425795321,1781898653000,-451.42382882,0.00034557,2]
[425795316,1781898653000,-393.69511907,0.00034557,2]
[425795314,1781898653000,-169.13,0.000345,30]
[425795312,1781898653000,-1125.19,0.00034475,2]
[425795322,1781898653000,-578.41250552,0.00034557,2]
[425795315,1781898653000,-1363.82,0.00034544,60]
[425795319,1781898653000,-239.25507217,0.00034557,2]
[425795323,1781898653000,-203.31204295,0.00034557,2]
[425795313,1781898653000,-3142.9689,0.00034481,2]
[425795333,1781898653000,-476.26876889,0.00034557,2]
[425795324,1781898653000,-238.11218963,0.00034557,2]
[425795326,1781898653000,-163.64722725,0.00034557,2]
[425795328,1781898653000,-269.16301679,0.00034557,2]
[425795327,1781898653000,-197.49657506,0.00034557,2]
[425795330,1781898653000,-242.50407671,0.00034557,2]
[425795335,1781898653000,-229.96638618,0.00034557,2]
[425795331,1781898653000,-558.04216412,0.00034557,2]
[425795329,1781898653000,-511.88203482,0.00034557,2]
[425795332,1781898653000,-367.91373372,0.00034557,2]
[425795334,1781898653000,-594.38719376,0.00034557,2]
[425795318,1781898653000,-546.92867401,0.00034557,2]
[425795325,1781898653000,-208.4809974,0.00034557,2]
[425795311,1781898653000,-1000.0,0.00034475,2]
[425795297,1781898653000,-3142.9689,0.00034358,2]
[425795309,1781898653000,-1687.79,0.00034475,2]
[425795337,1781898653000,-161.52286233,0.0003456,2]
[425795289,1781898653000,-298.2,0.00034182,7]
[425795286,1781898653000,-181.97,0.00034154,2]
[425795290,1781898653000,-501.0,0.00034185,9]
[425795287,1781898653000,-500.0,0.00034155,27]
[425795288,1781898653000,-800.0,0.00034176,2]
[425795292,1781898653000,-849.56608415,0.00034199,2]
[425795291,1781898653000,-150.0,0.0003419,2]
[425795293,1781898653000,-150.0,0.00034246,2]
[425795294,1781898653000,-4336.51,0.00034288,2]
[425795298,1781898653000,-378.5083,0.00034358,2]
[425795296,1781898653000,-260.4103811,0.00034327,2]
[425795295,1781898653000,-436.62,0.000343,7]
[425795299,1781898653000,-10091.90896854,0.000344,2]
[425795300,1781898653000,-208.08,0.00034404,2]
[425795301,1781898653000,-4336.51,0.00034449,2]
[425795302,1781898653000,-150.0,0.00034453,2]
[425795305,1781898653000,-500.0,0.00034453,2]
[425795307,1781898653000,-1000.0,0.00034475,2]
[425795304,1781898653000,-500.0,0.00034453,2]
[425795310,1781898653000,-1000.0,0.00034475,2]
[425795303,1781898653000,-150.0,0.00034453,2]
[425795306,1781898653000,-1000.0,0.00034475,2]
[425795308,1781898653000,-1000.0,0.00034475,2]
[425795345,1781898653000,-482.37,0.00034592,2]
[425795343,1781898653000,-4336.51,0.00034591,2]
[425795347,1781898653000,-375.58,0.00034627,60]
[425795364,1781898653000,-10091.90896854,0.000348,2]
[425795366,1781898653000,-4336.51,0.00034836,2]
[425795367,1781898653000,-3142.9689,0.00034849,2]
[425795360,1781898653000,-500.0,0.00034779,120]
[425795363,1781898653000,-1641.07,0.00034799,7]
[425795384,1781898653000,-4336.51,0.00034946,2]
[425795381,1781898653000,-337.0,0.00034934,30]
[425795379,1781898653000,-156.0,0.00034932,30]
[425795383,1781898653000,-339.0,0.00034934,30]
[425795377,1781898653000,-158.0,0.00034932,30]
[425795375,1781898653000,-485.0,0.00034932,30]
[425795382,1781898653000,-154.0,0.00034934,30]
[425795378,1781898653000,-314.0,0.00034932,30]
[425795373,1781898653000,-151.0,0.00034932,30]
[425795374,1781898653000,-406.0,0.00034932,30]
[425795380,1781898653000,-162.0,0.00034934,30]
[425795376,1781898653000,-159.0,0.00034932,30]
[425795385,1781898653000,-1616.81645165,0.00034949,2]
[425795386,1781898653000,-555.39710689,0.00034957,7]
[425795387,1781898653000,-3142.9689,0.00034972,2]
[425795391,1781898653000,-51868.10678173,0.00035,4]
[425795389,1781898653000,-450.0,0.00035,60]
[425795390,1781898653000,-247.35,0.00035,2]
[425795365,1781898653000,-436.62,0.000348,7]
[425795370,1781898653000,-204.0,0.0003488,30]
[425795336,1781898653000,-654.06105934,0.00034557,2]
[425795372,1781898653000,-178.0,0.00034901,120]
[425795361,1781898653000,-231014.0,0.0003478,30]
[425795346,1781898653000,-3142.9689,0.00034603,2]
[425795341,1781898653000,-647.95,0.00034586,2]
[425795388,1781898653000,-25000.0,0.00035,15]
[425795342,1781898653000,-486.12,0.0003459,30]
[425795338,1781898653000,-193.25869994,0.0003456,2]
[425795339,1781898653000,-223.15115677,0.00034561,2]
[425795340,1781898653000,-536.32722532,0.00034561,2]
[425795348,1781898653000,-180.68,0.00034627,60]
[425795358,1781898653000,-3142.9689,0.00034726,2]
[425795352,1781898653000,-150.0,0.00034684,2]
[425795353,1781898653000,-150.0,0.00034684,2]
[425795344,1781898653000,-573.56,0.00034592,2]
[425795351,1781898653000,-150.0,0.00034684,2]
[425795355,1781898653000,-150.0,0.00034684,2]
[425795350,1781898653000,-1541.37934403,0.00034649,7]
[425795359,1781898653000,-305.23,0.0003476,2]
[425795371,1781898653000,-1500.0,0.000349,7]
[425795354,1781898653000,-150.0,0.00034684,2]
[425795349,1781898653000,-156.89,0.00034627,60]
[425795357,1781898653000,-4336.51,0.00034719,2]
[425795362,1781898653000,-1500.0,0.00034795,2]
[425795369,1781898653000,-270.0455652,0.00034872,2]
[425795368,1781898653000,-3891.0,0.00034857,10]
[425795356,1781898653000,-150.0,0.00034684,2]
[425795431,1781898654000,-476.22437927,0.00035125,2]
[425795430,1781898654000,-551.87060058,0.00035125,2]
[425795427,1781898654000,-682.50937976,0.00035125,2]
[425795425,1781898654000,-151.22303948,0.00035125,2]
[425795424,1781898654000,-166.30268513,0.00035125,2]
[425795432,1781898654000,-635.02502519,0.00035125,2]
[425795423,1781898654000,-156.47983391,0.00035125,2]
[425795428,1781898654000,-485.00815342,0.00035125,2]
[425795422,1781898654000,-437.41326048,0.00035125,2]
[425795429,1781898654000,-744.05621883,0.00035125,2]
[425795426,1781898654000,-151.06161387,0.00035125,2]
[425795434,1781898654000,-186.33494718,0.00035125,2]
[425795445,1781898654000,-196.59704815,0.00035131,2]
[425795433,1781898654000,-792.51625835,0.00035125,2]
[425795435,1781898654000,-459.93277237,0.00035125,2]
[425795436,1781898654000,-159.20483253,0.00035125,2]
[425795437,1781898654000,-201.56185814,0.00035125,2]
[425795438,1781898654000,-872.08141246,0.00035125,2]
[425795441,1781898654000,-323.04572466,0.00035128,2]
[425795439,1781898654000,-392.54783676,0.00035128,2]
[425795443,1781898654000,-715.10296709,0.00035129,2]
[425795440,1781898654000,-160.99515594,0.00035128,2]
[425795442,1781898654000,-446.30231354,0.00035129,2]
[425795421,1781898654000,-163.05339563,0.00035125,2]
[425795447,1781898654000,-437.17286184,0.00035131,2]
[425795444,1781898654000,-219.84005869,0.00035131,2]
[425795417,1781898654000,-327.2944545,0.00035125,2]
[425795407,1781898654000,-478.51014434,0.00035125,2]
[425795415,1781898654000,-416.96199479,0.00035125,2]
[425795395,1781898654000,-4336.51,0.00035049,2]
[425795393,1781898654000,-371.14107545,0.00035004,2]
[425795450,1781898654000,-212.86592746,0.00035158,2]
[425795392,1781898654000,-155.03929066,0.00035,15]
[425795394,1781898654000,-1215.3,0.0003503,62]
[425795399,1781898654000,-252.11878881,0.00035109,2]
[425795401,1781898654000,-250.0,0.00035109,2]
[425795397,1781898654000,-3142.9689,0.00035094,2]
[425795402,1781898654000,-250.0,0.00035109,2]
[425795400,1781898654000,-250.0,0.00035109,2]
[425795403,1781898654000,-590.54267861,0.00035125,2]
[425795398,1781898654000,-10091.90896854,0.000351,2]
[425795408,1781898654000,-770.3899157,0.00035125,2]
[425795404,1781898654000,-259.76537493,0.00035125,2]
[425795406,1781898654000,-729.23823202,0.00035125,2]
[425795405,1781898654000,-213.54399698,0.00035125,2]
[425795418,1781898654000,-394.99315012,0.00035125,2]
[425795419,1781898654000,-179.47850249,0.00035125,2]
[425795410,1781898654000,-771.21667402,0.00035125,2]
[425795420,1781898654000,-538.32603359,0.00035125,2]
[425795411,1781898654000,-376.08395615,0.00035125,2]
[425795412,1781898654000,-207.68511551,0.00035125,2]
[425795409,1781898654000,-601.89843843,0.00035125,2]
[425795414,1781898654000,-169.481741,0.00035125,2]
[425795413,1781898654000,-406.62408591,0.00035125,2]
[425795416,1781898654000,-163.2192773,0.00035125,2]
[425795396,1781898654000,-792.21005374,0.0003509,2]
[425795446,1781898654000,-341.61088064,0.00035131,2]
[425795454,1781898654000,-385.76087659,0.00035158,2]
[425795480,1781898654000,-482.34,0.00035402,2]
[425795482,1781898654000,-396.26,0.00035404,2]
[425795484,1781898654000,-185.04,0.00035405,2]
[425795489,1781898654000,-4336.51,0.00035413,2]
[425795487,1781898654000,-396.15,0.00035405,2]
[425795483,1781898654000,-185.18,0.00035405,2]
[425795485,1781898654000,-185.43,0.00035405,2]
[425795486,1781898654000,-575.57,0.00035405,2]
[425795488,1781898654000,-185.19,0.00035405,2]
[425795492,1781898654000,-637.69700445,0.00035433,2]
[425795491,1781898654000,-280.03725111,0.00035417,2]
[425795490,1781898654000,-208.08,0.00035416,2]
[425795499,1781898654000,-1641.08,0.00035484,7]
[425795496,1781898654000,-1215.31,0.0003546,88]
[425795498,1781898654000,-182.3673319,0.00035482,30]
[425795497,1781898654000,-3142.9689,0.00035462,2]
[425795500,1781898654000,-250.0,0.00035491,2]
[425795495,1781898654000,-65820.01192363,0.00035455,60]
[425795493,1781898654000,-500.0,0.00035454,120]
[425795494,1781898654000,-100000.0,0.00035455,90]
[425795501,1781898654000,-4336.51,0.00035494,2]
[425795503,1781898654000,-633.49537877,0.00035516,2]
[425795451,1781898654000,-154.30243627,0.00035158,2]
[425795505,1781898654000,-4336.51,0.00035573,2]
[425795502,1781898654000,-10091.90896854,0.000355,2]
[425795481,1781898654000,-396.25,0.00035402,2]
[425795478,1781898654000,-501.0,0.0003536,11]
[425795504,1781898654000,-526.8743117,0.00035562,7]
[425795477,1781898654000,-3142.9689,0.0003534,2]
[425795475,1781898654000,-4336.51,0.00035328,2]
[425795453,1781898654000,-355.40547318,0.00035158,2]
[425795449,1781898654000,-4336.51,0.00035147,2]
[425795456,1781898654000,-155.75251896,0.00035158,2]
[425795452,1781898654000,-386.23378225,0.00035158,2]
[425795455,1781898654000,-164.21496577,0.00035158,2]
[425795458,1781898654000,-393.10180201,0.00035158,2]
[425795457,1781898654000,-357.65788677,0.00035158,2]
[425795459,1781898654000,-165.59539647,0.00035158,2]
[425795460,1781898654000,-225.50599388,0.0003516,2]
[425795461,1781898654000,-418.55655373,0.0003516,2]
[425795463,1781898654000,-250.85792076,0.0003516,2]
[425795466,1781898654000,-3142.9689,0.00035217,2]
[425795448,1781898654000,-187.59,0.00035138,2]
[425795462,1781898654000,-430.69800159,0.0003516,2]
[425795467,1781898654000,-378.5083,0.00035217,2]
[425795473,1781898654000,-436.62,0.000353,7]
[425795469,1781898654000,-822.221062,0.00035232,120]
[425795479,1781898654000,-396.05,0.00035401,2]
[425795474,1781898654000,-305.23,0.00035311,2]
[425795472,1781898654000,-810.24512577,0.0003528,120]
[425795470,1781898654000,-4336.51,0.00035239,2]
[425795468,1781898654000,-588.53385619,0.00035232,120]
[425795465,1781898654000,-207.2294948,0.000352,30]
[425795464,1781898654000,-500.0,0.00035179,29]
[425795471,1781898654000,-305.085,0.0003528,120]
[425795476,1781898654000,-303.2,0.00035333,2]
[425795536,1781898655000,-8617.696041,0.00035616,30]
[425795547,1781898655000,-8617.696041,0.00035616,30]
[425795533,1781898655000,-151.0,0.00035616,30]
[425795534,1781898655000,-190.984138,0.00035616,30]
[425795541,1781898655000,-8617.696041,0.00035616,30]
[425795548,1781898655000,-8617.696041,0.00035616,30]
[425795538,1781898655000,-8617.696041,0.00035616,30]
[425795537,1781898655000,-8617.696041,0.00035616,30]
[425795539,1781898655000,-8617.696041,0.00035616,30]
[425795540,1781898655000,-8617.696041,0.00035616,30]
[425795549,1781898655000,-8617.696041,0.00035616,30]
[425795543,1781898655000,-8617.696041,0.00035616,30]
[425795542,1781898655000,-8617.696041,0.00035616,30]
[425795545,1781898655000,-8617.696041,0.00035616,30]
[425795546,1781898655000,-8617.696041,0.00035616,30]
[425795553,1781898655000,-8617.696041,0.00035616,30]
[425795554,1781898655000,-8617.696034,0.00035616,30]
[425795555,1781898655000,-208.731197,0.00035616,30]
[425795551,1781898655000,-8617.696041,0.00035616,30]
[425795552,1781898655000,-8617.696041,0.00035616,30]
[425795550,1781898655000,-8617.696041,0.00035616,30]
[425795527,1781898655000,-500.0,0.00035616,120]
[425795544,1781898655000,-8617.696041,0.00035616,30]
[425795526,1781898655000,-500.0,0.00035616,120]
[425795515,1781898655000,-500.0,0.00035616,120]
[425795530,1781898655000,-150.0,0.00035616,2]
[425795558,1781898655000,-208.731197,0.00035616,30]